Cogmind - Beta 14 *** ADVENTURER MODE // 2025.05.06 @ 12:24:30 Player: I stole game because im poor Result: Destroyed by G-47 Trooper with Particle Gun Performance ------------- Evolutions (1) 500 Regions Visited (6) 1200 Robots Destroyed (84) 420 Value Destroyed (1963) 1963 Prototype IDs (8) 160 Alien Tech Used (0) 0 Bonus (296) 296 TOTAL SCORE: 4539 Bonus ------- High Alert Combat Kills 296 Cogmind --------- Core Integrity 0/400 Matter 201/300 Energy 94/100 System Corruption 3% Temperature Warning (301) Movement Rolling (130) Ox2 Location -8/Mines Parts ------- > --- POWER (1) -------- (None) > --- PROPULSION (2) --- Compact Wheel > --- UTILITY (4) ------ Large Storage Unit Machine Analyzer Hardened Medium Armor Plating Reactive Plating > --- WEAPON (2) ------- Light Assault Rifle Light Assault Rifle > --- INVENTORY (15) --- Large Battery (200) Medium Matter Pod (100) ECM Suite Medium Armor Plating Medium Armor Plating Hardened Medium Armor Plating Hardened Medium Armor Plating Reactive Plating Reactive Plating Heavy EM Pulse Gun Rocket Launcher Improved Datajack Peak State ------------ > --- POWER ------------ Ion Engine > --- PROPULSION ------- Wheel Wheel > --- UTILITY ---------- Large Storage Unit Machine Analyzer Hardened Medium Armor Plating Reactive Plating > --- WEAPON ----------- Heavy EM Pulse Gun Rocket Launcher > --- INVENTORY -------- Wheel Compact Wheel Large Battery Medium Matter Pod ECM Suite Medium Armor Plating Medium Armor Plating Hardened Medium Armor Plating Hardened Medium Armor Plating Hardened Medium Armor Plating Reactive Plating Reactive Plating Reactive Plating Small Laser Improved Datajack [Rating: 20] Favorites ----------- Power Light Ion Engine Engine Light Ion Engine Propulsion Compact Wheel Wheel Compact Wheel Flight Unit Flight Unit Utility Large Storage Unit Device Sensor Array Storage Large Storage Unit Processor Machine Analyzer Protection Reactive Plating Weapon Light Assault Rifle Energy Gun EM Pulse Gun Energy Cannon Beam Cannon Ballistic Gun Light Assault Rifle Launcher Rocket Launcher Special Melee Weapon Datajack Build | -11 -10 -10 -9 -9 -9 -8 ------- Run | Yrd Mat Min Mat Min Exi Min Slots Evolved 2 | . . . 2 . . . Power . | . . . . . . . Propulsion . | . . . . . . . Utility 2 | . . . 2 . . . Weapon . | . . . . . . . Parts Attached 59 | 4 13 2 33 6 . 1 Power 6 | . 1 . 5 . . . Engine 6 | . 1 . 5 . . . Core . | . . . . . . . Reactor . | . . . . . . . Propulsion 19 | 2 7 . 8 2 . . Treads . | . . . . . . . Leg . | . . . . . . . Wheel 15 | 2 3 . 8 2 . . Hover . | . . . . . . . Flight 4 | . 4 . . . . . Utility 13 | . 4 . 8 . . 1 Device 3 | . 2 . 1 . . . Storage 2 | . 2 . . . . . Processor 1 | . . . 1 . . . Hackware . | . . . . . . . Protection 7 | . . . 6 . . 1 Artifact . | . . . . . . . Weapon 21 | 2 1 2 12 4 . . Energy Gun 9 | 1 . 1 5 2 . . Energy Cannon 1 | . 1 . . . . . Ballistic Gun 8 | 1 . . 5 2 . . Ballistic Cannon . | . . . . . . . Launcher 1 | . . . 1 . . . Special Weapon . | . . . . . . . Impact Weapon . | . . . . . . . Slashing Weapon . | . . . . . . . Piercing Weapon . | . . . . . . . Special Melee Weapon 2 | . . 1 1 . . . Unidentified Prototypes . | . . . . . . . Corrupted Parts 1 | . . . . 1 . . System Corruption 3 | . . . . 3 . . Parts Lost 15 | . 1 1 10 . . 3 Power 3 | . . . 2 . . 1 Propulsion 5 | . . . 4 . . 1 Utility 5 | . 1 . 3 . . 1 Weapon 2 | . . 1 1 . . . Highest Loss Streak 2 | . 1 1 2 . . 2 To Critical Strikes . | . . . . . . . Average Slot Usage (%) 93 | . 72 98 96 100 100 92 Engine 10 | . 5 14 10 11 11 4 Wheel 21 | . 16 28 21 22 22 22 Flight 1 | . 11 . . . . . Device 6 | . 8 14 8 . . . Storage 11 | . 13 14 11 11 11 11 Processor 7 | . . . 11 11 11 11 Protection 10 | . . . 11 22 22 22 Energy Gun 6 | . 14 6 5 6 . . Energy Cannon 1 | . . 14 . . . . Ballistic Gun 11 | . 1 . 14 15 22 22 Peak Build Rating 20 | 4 8 8 20 20 17 17 Average Rating 13 | 2 5 7 15 18 17 15 On Entrance 10 | . 4 8 8 20 17 17 Naked Turns . | . . . . . . . Heaviest Build 50 | 3 29 29 50 47 45 . Greatest Support 32 | 3 32 32 32 32 32 . Greatest Overweight (x) 4 | . . . 4 2 1 . Average Overweight (x) . | . . . . 1 1 . Largest Inventory Capacity 15 | 5 15 15 15 15 15 15 Average Capacity 14 | 5 11 15 15 15 15 15 Most Carried 15 | 5 12 14 15 15 13 13 Average Carried 12 | 1 7 12 14 14 13 12 Final Capacity 15 | 5 15 15 15 15 15 15 Final Carried 15 | 1 11 14 15 13 13 12 Class Distribution -------------------- 59% | Scavenger-Mutant 35% | Mutant 4% | Skirmisher Dominant Class ---------------- Mutant | -10/Materials Mutant | -10/Mines Scavenger-Mutant | -9/Materials Scavenger-Mutant | -9/Mines Scavenger-Mutant | -9/Exiles Scavenger-Mutant | -8/Mines Resources | -11 -10 -10 -9 -9 -9 -8 ----------- Run | Yrd Mat Min Mat Min Exi Min Matter Collected 1495 | 240 205 . 962 88 . . Remotely . | . . . . . . . Salvage Created 3047 | . 436 11 2364 182 . 54 Parts 196 | . 31 . 155 9 . 1 Haulers Intercepted 4 | . . . 4 . . . Recyclers Shooed 2 | . 1 . 1 . . . Parts Field Recycled . | . . . . . . . Retrieved Matter . | . . . . . . . Parts Self-Destructed . | . . . . . . . Prevented . | . . . . . . . Kills | -11 -10 -10 -9 -9 -9 -8 ------- Run | Yrd Mat Min Mat Min Exi Min Combat Hostiles Destroyed 63 | . 7 1 48 6 . 1 Guns 60 | . 6 . 47 6 . 1 Cannons 1 | . . 1 . . . . AOE 2 | . 1 . 1 . . . Classes Destroyed 14 | . 5 1 8 . . . Worker 3 | . 2 . 1 . . . Builder 2 | . . . 2 . . . Hauler 4 | . . . 4 . . . Recycler 4 | . 2 . 2 . . . Mechanic 1 | . 1 . . . . . Operator 1 | . . . 1 . . . Watcher 8 | . 3 . 5 . . . Swarmer 21 | . 7 . 11 3 . . Grunt 28 | . . . 24 3 . 1 Brawler 1 | . . . 1 . . . Duelist 1 | . . . 1 . . . Protector 2 | . . . 2 . . . Sentry 9 | . . . 9 . . . Assembled 1 | . . 1 . . . . Best Kill Streak 8 | . 4 1 8 3 . 1 Combat Bots Only 8 | . 3 1 8 3 . 1 Max Kills in Single Turn 2 | . 2 1 2 1 . 1 Gunslinging 1 | . . . 1 . . . Exploded 1 | . 1 . 1 . . . Melee . | . . . . . . . Uniques/NPCs Destroyed . | . . . . . . . Combat | -11 -10 -10 -9 -9 -9 -8 -------- Run | Yrd Mat Min Mat Min Exi Min Hostile Shots Fired 419 | . 40 6 270 44 . 59 Missed 126 | . 15 1 81 11 . 18 Damage Taken 2917 | . 184 81 1855 247 . 550 Core 501 | . 97 . 262 30 . 112 Absorbed by Shields . | . . . . . . . Ignored by Resistances 903 | . 60 22 561 107 . 153 Core Remaining (%) 80 | 100 . 61 . . . . Volleys Fired 242 | . 39 3 156 25 . 19 Largest 2 | . 1 1 2 2 . 2 Hottest 100 | . 40 60 100 96 . 40 Shots Fired 413 | . 39 3 283 50 . 38 Gun 407 | . 39 . 280 50 . 38 Cannon 3 | . . 3 . . . . Launcher 3 | . . . 3 . . . Special . | . . . . . . . Kinetic 279 | . . . 203 38 . 38 Thermal 60 | . . 3 45 12 . . Explosive 3 | . . . 3 . . . Electromagnetic 71 | . 39 . 32 . . . Robot Hit Streak 33 | . 19 7 33 13 . 14 Robot Miss Streak 3 | . 1 . 3 3 . 1 Penetration Max . | . . . . . . . Secondary Targets 6 | . . . 6 . . . Max Gunslinging Chain 1 | . . . 1 . . . Shots Hit Robots 331 | . 33 7 223 34 . 34 Core Hits 151 | . 18 2 112 12 . 7 Critical Kills 1 | . . . 1 . . . Critical Parts Destroyed . | . . . . . . . Critical Strikes 4 | . 1 . 3 . . . Burn 2 | . . . 2 . . . Destroy 1 | . . . 1 . . . Corrupt 1 | . 1 . . . . . Melee Attacks 6 | . . 4 2 . . . Impact . | . . . . . . . Slashing . | . . . . . . . Piercing . | . . . . . . . Sneak Attacks 3 | . . 2 1 . . . Combat Hostiles . | . . . . . . . Follow-up Attacks . | . . . . . . . Damage Inflicted 4696 | . 554 54 3505 315 . 268 Guns 4102 | . 437 . 3082 315 . 268 Cannons 54 | . . 54 . . . . Explosions 540 | . 117 . 423 . . . Melee . | . . . . . . . Ramming . | . . . . . . . Kinetic 2689 | . . . 2212 209 . 268 Thermal 739 | . 117 54 462 106 . . Explosive 388 | . . . 388 . . . Electromagnetic 880 | . 437 . 443 . . . Impact . | . . . . . . . Slashing . | . . . . . . . Piercing . | . . . . . . . Highest Corruption 3 | . . . . 3 3 3 Average Corruption 3 | . . . . 3 3 3 Corruption Purged . | . . . . . . . Corruption Blocked . | . . . . . . . Effects 13 | . . . . . 12 1 Message Errors 5 | . . . . . 5 . Matter Fused 6 | . . . . . 5 1 Heat Flow Errors 1 | . . . . . 1 . Energy Discharges 1 | . . . . . 1 . Overload Shots . | . . . . . . . Overflow Damage . | . . . . . . . Projectiles . | . . . . . . . Explosions . | . . . . . . . Melee . | . . . . . . . Knockbacks . | . . . . . . . Impact . | . . . . . . . Kinetic . | . . . . . . . Secondary . | . . . . . . . Self-Inflicted Damage 98 | . 35 . 63 . . . Shots 5 | . 2 . 3 . . . Rammed . | . . . . . . . Targets Rammed . | . . . . . . . Kicked . | . . . . . . . Crushed . | . . . . . . . Highest Temperature 292 | . 12 60 218 290 111 292 Average Temperature 84 | . 8 33 69 115 59 148 Received Heat Transfer 1401 | . . 24 840 132 . 405 Effects 1 | . . . . . . 1 Energy Bleed 1 | . . . . . . 1 Siege Activations . | . . . . . . . Robots Corrupted . | . . . . . . . Combat Hostiles . | . . . . . . . Parts Fried 3 | . 2 . 1 . . . Impact Corruptions . | . . . . . . . Robots Melted . | . . . . . . . Combat Hostiles . | . . . . . . . Parts Melted 5 | . . . 5 . . . Heat Transferred 1719 | . 150 111 1198 260 . . Parts Sabotaged . | . . . . . . . Parts Stolen . | . . . . . . . Parts Stripped . | . . . . . . . Power Chain Reactions 3 | . 2 . 1 . . . Alert | -11 -10 -10 -9 -9 -9 -8 ------- Run | Yrd Mat Min Mat Min Exi Min Peak Influence 759 | . 192 65 759 410 . 20 Initial 210 | . . 45 . 210 . . Average 282 | . 93 43 419 337 . 12 Maximum Alert Level 3 | . . . 3 2 . . Low Security (%) 50 | 100 100 100 26 . . 100 Level 1 11 | . . . 10 61 . . Level 2 34 | . . . 57 38 . . Level 3 3 | . . . 6 . . . Level 4 . | . . . . . . . Level 5 . | . . . . . . . High Security . | . . . . . . . Max Security . | . . . . . . . Squads Dispatched 8 | . 1 . 7 . . . Investigation 3 | . 1 . 2 . . . Extermination . | . . . . . . . Reinforcement 3 | . . . 3 . . . Assault 2 | . . . 2 . . . Garrison . | . . . . . . . Intercept . | . . . . . . . Searches Triggered . | . . . . . . . Construction Impeded . | . . . . . . . Haulers Reinforced . | . . . . . . . Active Scanning Responses . | . . . . . . . Cargo Convoy Interrupts . | . . . . . . . Stealth | -11 -10 -10 -9 -9 -9 -8 --------- Run | Yrd Mat Min Mat Min Exi Min Distress Signals 4 | . . . 4 . . . Communications Jammed . | . . . . . . . Distress Signals . | . . . . . . . Times Spotted 112 | . 17 6 79 7 . 3 Peak Tracking Total 6 | . 3 3 6 4 . 3 Tactical Retreats 13 | . 2 3 6 2 . . Traps | -11 -10 -10 -9 -9 -9 -8 ------- Run | Yrd Mat Min Mat Min Exi Min Traps Triggered 2 | . . . 2 . . . Indirectly . | . . . . . . . Trap Hack Attempts . | . . . . . . . Triggered . | . . . . . . . Disarmed . | . . . . . . . Reprogrammed . | . . . . . . . Reused . | . . . . . . . Traps Extracted . | . . . . . . . Installed . | . . . . . . . Triggered . | . . . . . . . Machines | -11 -10 -10 -9 -9 -9 -8 ---------- Run | Yrd Mat Min Mat Min Exi Min Machines Disabled 3 | . . . 3 . . . Max in Single Turn 2 | . . . 2 . . . Machines Repaired . | . . . . . . . Machines Dismantled . | . . . . . . . Machines Sabotaged . | . . . . . . . Overloaded Fab Kills . | . . . . . . . Hacking | -11 -10 -10 -9 -9 -9 -8 --------- Run | Yrd Mat Min Mat Min Exi Min Machines Accessed 23 | . 9 . 10 1 3 . Terminals 15 | . 7 . 7 1 . . Fabricators . | . . . . . . . Repair Stations . | . . . . . . . Recycling Units 4 | . 2 . 2 . . . Scanalyzers 1 | . . . 1 . . . Garrison Access . | . . . . . . . Total Hacks 77 | . 31 . 33 1 12 . Successful 53 | . 18 . 23 . 12 . Failed 24 | . 13 . 10 1 . . Catastrophic 3 | . 1 . 1 1 . . Database Lockouts . | . . . . . . . Manual 52 | . 25 . 26 1 . . Terminals 55 | . 27 . 27 1 . . Fabricators . | . . . . . . . Repair Stations . | . . . . . . . Recycling Units 9 | . 4 . 5 . . . Scanalyzers 1 | . . . 1 . . . Garrison Access . | . . . . . . . Terminal Hacks 33 | . 10 . 11 . 12 . Record 12 | . . . . . 12 . Prototype ID Bank 5 | . 3 . 2 . . . Branch Access Points 2 | . 1 . 1 . . . Emergency Access Points 1 | . . . 1 . . . Terminal Index 1 | . 1 . . . . . Unreport Threat 1 | . . . 1 . . . Locate Traps 5 | . 4 . 1 . . . Dispatch Records 1 | . . . 1 . . . Security Status 1 | . . . 1 . . . Patrol Status 1 | . . . 1 . . . Registered Components 1 | . 1 . . . . . Registered Prototypes 1 | . . . 1 . . . Zone Layout 1 | . . . 1 . . . Fabricator Hacks . | . . . . . . . Repair Station Hacks . | . . . . . . . Recycling Unit Hacks . | . . . . . . . Scanalyzer 1 | . . . 1 . . . Insert Component 1 | . . . 1 . . . Garrison Access Hacks . | . . . . . . . Unauthorized Hacks 19 | . 8 . 11 . . . Terminals 14 | . 6 . 8 . . . Track 3 | . 1 . 2 . . . Assimilate 1 | . . . 1 . . . Botnet 9 | . 5 . 4 . . . Disrupt 1 | . . . 1 . . . Fabricators . | . . . . . . . Repair Stations . | . . . . . . . Recycling Units 5 | . 2 . 3 . . . Reject 4 | . 2 . 2 . . . Mask 1 | . . . 1 . . . Scanalyzers . | . . . . . . . Garrison Access . | . . . . . . . Data Cores Recovered . | . . . . . . . Used . | . . . . . . . Hacking Detections 15 | . 7 . 7 1 . . Full Trace Events 2 | . 1 . 1 . . . Feedback Events . | . . . . . . . Feedback Blocked . | . . . . . . . Robot Schematics Acquired . | . . . . . . . Robots Built . | . . . . . . . Authchips . | . . . . . . . Time . | . . . . . . . Total Robot Build Rating . | . . . . . . . Part Schematics Acquired . | . . . . . . . Parts Built . | . . . . . . . Authchips . | . . . . . . . Time . | . . . . . . . Total Part Build Rating . | . . . . . . . Parts Repaired . | . . . . . . . Time . | . . . . . . . Parts Recycled . | . . . . . . . Recycled Matter . | . . . . . . . Retrieved Matter . | . . . . . . . Retrieved Components . | . . . . . . . Parts Scanalyzed . | . . . . . . . Part Schematics Acquired . | . . . . . . . Parts Damaged . | . . . . . . . Bothacking | -11 -10 -10 -9 -9 -9 -8 ------------ Run | Yrd Mat Min Mat Min Exi Min Used RIF Installer . | . . . . . . . Robots Hacked 3 | . . 2 1 . . . Non-combat 2 | . . 1 1 . . . Combat 1 | . . 1 . . . . Robot Hacks Applied 4 | . . 3 1 . . . parse_system 2 | . . 2 . . . . no_distress 1 | . . 1 . . . . check_alert 1 | . . . 1 . . . Relay Couplers Released . | . . . . . . . Fabnet Peak Effective % . | . . . . . . . Robots Rewired . | . . . . . . . Allies Hacked . | . . . . . . . Hacks Repelled . | . . . . . . . Allies | -11 -10 -10 -9 -9 -9 -8 -------- Run | Yrd Mat Min Mat Min Exi Min Total Allies . | . . . . . . . Largest Group . | . . . . . . . Highest-Rated Group . | . . . . . . . Highest-Rated Ally . | . . . . . . . Total Orders . | . . . . . . . Ally Attacks . | . . . . . . . Total Damage . | . . . . . . . Kills . | . . . . . . . Allies Corrupted . | . . . . . . . Allies Melted . | . . . . . . . Intel | -11 -10 -10 -9 -9 -9 -8 ------- Run | Yrd Mat Min Mat Min Exi Min Robot Analysis Total . | . . . . . . . Derelict Logs Recovered 1 | . . . . 1 . . Drone Launches . | . . . . . . . Drone Recoveries . | . . . . . . . Exploration | -11 -10 -10 -9 -9 -9 -8 ------------- Run | Yrd Mat Min Mat Min Exi Min Turns Passed 4385 | 27 760 527 1979 363 681 48 Spaces Moved 3512 | 34 966 435 1223 261 593 . Core 70 | 34 36 . . . . . Treads . | . . . . . . . Legs . | . . . . . . . Wheels 2868 | . 356 435 1223 261 593 . Hover . | . . . . . . . Flight 574 | . 574 . . . . . Fastest Speed 37 | 50 37 100 100 105 115 . Average Speed 94 | 50 60 100 109 106 115 . Slowest Speed 140 | 50 100 100 140 115 115 . Overloaded Moves . | . . . . . . . Propulsion Burnouts . | . . . . . . . Robots Hopped 1 | . 1 . . . . . Cave-ins Triggered . | . . . . . . . Exploration Rate (%) 53 | 3 82 62 86 47 89 3 Regions Visited 6 Branch Regions 4 Pre-discovered Areas 1 | . . . . 1 . . Known Exits Taken 2 | . 1 . 1 . . . Unknown Exits Taken 4 | 1 . 1 . 1 1 . Scrap Searched 1 | . . . . 1 . . Spaces Dug 5 | . . . 5 . . . Terrain Destroyed 18 | . 3 . 15 . . . Melee . | . . . . . . . Projectile . | . . . . . . . AOE 18 | . 3 . 15 . . . Terrain Rammed . | . . . . . . . Walls Destroyed . | . . . . . . . Machines Disabled . | . . . . . . . Actions | -11 -10 -10 -9 -9 -9 -8 --------- Run | Yrd Mat Min Mat Min Exi Min Total 4166 | 44 1098 521 1588 303 592 20 Wait 243 | . 56 74 107 6 . . Move 3504 | 33 963 434 1222 260 592 . Hop 1 | . 1 . . . . . Pick Up 73 | 6 20 4 41 2 . . Fast Attach . | . . . . . . . Attach 24 | 4 5 1 13 . . 1 Detach . | . . . . . . . Swap 35 | . 8 1 20 6 . . Drop 38 | 1 6 . 27 4 . . Fire 242 | . 39 3 156 25 . 19 Melee 6 | . . 4 2 . . . Ram . | . . . . . . . Kick . | . . . . . . . Crush . | . . . . . . . Escape Stasis . | . . . . . . . Rewire . | . . . . . . . Trap . | . . . . . . . Miscellaneous . | . . . . . . . Route ------- -11/Scrapyard -10/Materials (discovered 3 exits: *Mat x2 / *Min) -10/Mines (discovered 2 exits: *Mat x2) -9/Materials (discovered 4 exits: [*Mat x3] / *Min) -9/Mines -9/Exiles (discovered 2 exits: [*Min x2]) -8/Mines History --------- Turn | Location | Event 10 | -11/Scrapyard | Discovered new exit (range 16) 28 | -11/Scrapyard | Entered Materials 48 | -10/Materials | Discovered new exit (range 16) 66 | -10/Materials | Discovered new exit (range 10) 169 | -10/Materials | Identified exit to Mines 203 | -10/Materials | Discovered new exit (range 3) 314 | -10/Materials | Build established: Mutant 788 | -10/Materials | Entered Mines 1021 | -10/Mines | Received a Rocket Launcher from a helpful Derelict 1077 | -10/Mines | Discovered new exit (range 14) 1088 | -10/Mines | Assembled infested the area 1160 | -10/Mines | Discovered new exit (range 10) 1315 | -10/Mines | Entered Materials 1315 | -9/Materials | Evolved 2 slots: Utility x2 1766 | -9/Materials | Discovered new exit (range 16) 2060 | -9/Materials | Destroyed 8 combat bots 2064 | -9/Materials | Build established: Scavenger-Mutant 2334 | -9/Materials | Discovered new exit (range 11) 2360 | -9/Materials | Core integrity fell below 50% 2515 | -9/Materials | First assault squad dispatched 2525 | -9/Materials | Discovered new exit (range 16) 2789 | -9/Materials | Identified exit to Mines 2995 | -9/Materials | Discovered new exit (range 8) 3294 | -9/Materials | Entered Mines 3334 | -9/Mines | Learned Materials trap positions 3543 | -9/Mines | Learned location of Storage (-7) 3650 | -9/Mines | Deemed a non-threat by the Exiles lab entrance 3650 | -9/Mines | Discovered new exit (range 5) 3657 | -9/Mines | Entered Exiles 3672 | -9/Exiles | Discovered new exit (range 15) 3686 | -9/Exiles | Met 8R-AWN 3702 | -9/Exiles | Met EX-HEX 3744 | -9/Exiles | Met EX-BIN 3890 | -9/Exiles | Met EX-DEC 3940 | -9/Exiles | Discovered new exit (range 11) 4016 | -9/Exiles | Visited The Gauntlet 4338 | -9/Exiles | Entered Mines 4361 | -8/Mines | Core integrity fell below 20% 4386 | -8/Mines | Destroyed by G-47 Trooper with Particle Gun Last Messages --------------- 04182_ 2VK0FLHZ|7,Z&D1LHODG 6IQO=UFCL8 04242_ System corrupted: Matter fused (-10). 04273_ VQ# TZL>BH3HB%RXJ/1%H1 LOCATION=UNKNOWN GOAL=ESCAPE 04339_ T-07 Excavator is excavating. 04340_ Reactive Plating destroyed. 04342_ T-07 Excavator is excavating. 04350_ Ion Engine destroyed. 04351_ T-07 Excavator is excavating. 04353_ System corrupted: Matter fused (-10). 04355_ G-47 Trooper destroyed. 04355_ T-07 Excavator is excavating. 04366_ Critical hit (Burn: +37). 04375_ U-05 Engineer lays Concrete. 04381_ T-07 Excavator is excavating. 04382_ Overheating: Energy bleed (-22). 04384_ Com. Wheel destroyed. 04385_ T-07 Excavator is excavating. [Achievement: First Step to Greatness] Map ----- +----------------------------------------------------+ | ??????????????????????????????????????? | | ??????????????????????????????????????? | | ??????????????????????????????????????? | | ??????????????????????????????????????? | | ??????????????????????????????????????? | | ??????????????????????????????????????? | | ??????????????????????????????????????? | | ??????????????????????????????????????? | | ??????????????????????????????????????? | | ??????????????????????????????????????? | | ???????????????? ?????????????????????? | | ???????????????? ????????????????????? | | ???????????????? ????????????????????? | | ???????????????? #????????????????????? | | ??????????????? #????????????????????? | | ??????????????? #????????????????????? | | ??????????????? #????????????????????? | | ??????????????? #????????????????????? | | ??????????????? #????????????????????? | | ??????????????? #????????????????????? | | ??????????????? #????????????????????? | | ?????????????## #????????????????????? | | ????????????## #????????????????????? | | ????????????# #????????????????????? | | ????????????# #????????????????????? | | ????????????# @ #????????????????????? | | ???????????# % g#???????????????????? | | ?????????? [ #???????????????????? | | ????????t g ##???????????????????? | | ???????### # ###????????????????????? | | ?????????#######??????????????????????? | | ??????????????????????????????????????? | | ??????????????????????????????????????? | | ??????????????????????????????????????? | | ??????????????????????????????????????? | | ??????????????????????????????????????? | | ??????????????????????????????????????? | | ??????????????????????????????????????? | | ??????????????????????????????????????? | | ??????????????????????????????????????? | | ??????????????????????????????????????? | | ??????????????????????????????????????? | | ??????????????????????????????????????? | | ??????????????????????????????????????? | | ??????????????????????????????????????? | | ??????????????????????????????????????? | | ??????????????????????????????????????? | | ??????????????????????????????????????? | | ??????????????????????????????????????? | | ??????????????????????????????????????? | +----------------------------------------------------+ Best States ------------- Heat Dissipation 28 Energy Generation 14 Energy Capacity 280 Matter Stores 300 Matter Capacity 300 Sight Range 16 Robot Scan Range 14 Terrain Scan Range 14 Terrain Scan Density 10 Armor Coverage 375 Resistance: KI 40 Resistance: TH 20 Resistance: EX 20 Resistance: EM 20 Resistance: I 20 Resistance: S 20 Resistance: P 20 Evasion (%) 62 Offensive Hacking 10 Item Schematics ----------------- None Robot Schematics ------------------ None Fabricated ------------ Nothing Alien Tech Used ----------------- None Achievements -------------- Everything Is Under Control First Step to Greatness Challenges ------------ None Game ------ Seed SuperchargedDamperFilter Manual? 0 Play Time 00:59:25 Cumulative 14.8 hours Start 2025.05.06 @ 11:21:31 End 2025.05.06 @ 12:24:30 Sessions 1 Manual Loads 0 Difficulty Adventurer Special Mode None Game No. 9 Rogue 0 Adventurer 9 Explorer 0 Win Type - Total 0 Types 0/0/0/0/0/0/0/0/0 Lore% 7 Gallery% 12 Achievement% 21 Wizard Run 0 Options --------- Layout 1 ASCII 0 Keyboard 0 Movement Numpad Keybinds 0 Fullscreen 1 Font 24/Smallcaps Map View 50x35 Zoom Use 0% Tactical HUD 1 Map Filters NONE Filters NONE Steam 0 RUN: 5eb8332e-1a72-4934-9d61-0dc5fdb3265b